Cogmind - Beta 13 @@@ ROGUE MODE // 2024.04.07 @ 01:30:01 Player: SnowyImp Result: Destroyed by H-61 Shepherd with Heavy Assault Cannon Performance ------------- Evolutions (2) 1000 Regions Visited (6) 1200 Robots Destroyed (13) 65 Value Destroyed (363) 363 Prototype IDs (2) 40 Alien Tech Used (0) 0 Bonus (200) 200 TOTAL SCORE: 2868 Bonus ------- Entered Garrisons 200 Cogmind --------- Core Integrity 0/550 Matter 146/300 Energy 83/100 System Corruption 3% Temperature Cool (0) Movement Flying (40) Location -8/Materials Parts ------- > --- POWER (1) -------- (None) > --- PROPULSION (5) --- Flight Unit > --- UTILITY (3) ------ Visual Processing Unit > --- WEAPON (2) ------- Powered Hammer > --- INVENTORY (5) ---- Microactuators Reaction Control System Peak State ------------ > --- POWER ------------ Nuclear Core > --- PROPULSION ------- Armored Treads Flight Unit Flight Unit Surge Thruster Surge Thruster > --- UTILITY ---------- Visual Processing Unit Improved Sensor Array Microactuators > --- WEAPON ----------- Powered Hammer Powered Hammer > --- INVENTORY -------- Microactuators Microactuators Microactuators Powered Hammer Powered Hammer [Rating: 33] Favorites ----------- Power Light Ion Engine Engine Light Ion Engine Power Core Nuclear Core Propulsion Aluminum Leg Treads Armored Treads Leg Aluminum Leg Hover Unit Improved Hover Unit Flight Unit VTOL Module Utility Medium Storage Unit Device Improved Heat Sink Storage Medium Storage Unit Processor Visual Processing Unit Weapon Small Laser Energy Gun Small Laser Impact Weapon Powered Hammer Build | -11 -10 -9 -9 -8 -8 -8 ------- Run | Yrd Mat Mat Min Mat Gar Mat Slots Evolved 4 | . . 2 . 2 . . Power . | . . . . . . . Propulsion 3 | . . 2 . 1 . . Utility 1 | . . . . 1 . . Weapon . | . . . . . . . Parts Attached 59 | 4 6 23 . 1 6 19 Power 7 | 1 1 3 . . 1 1 Engine 4 | 1 . 2 . . 1 . Core 3 | . 1 1 . . . 1 Reactor . | . . . . . . . Propulsion 32 | 2 2 14 . . 4 10 Treads 3 | . . . . . . 3 Leg 10 | 2 2 6 . . . . Wheel . | . . . . . . . Hover 4 | . . 3 . . . 1 Flight 15 | . . 5 . . 4 6 Utility 10 | . 2 4 . 1 . 3 Device 8 | . 1 4 . . . 3 Storage 1 | . 1 . . . . . Processor 1 | . . . . 1 . . Hackware . | . . . . . . . Protection . | . . . . . . . Artifact . | . . . . . . . Weapon 10 | 1 1 2 . . 1 5 Energy Gun 5 | 1 1 2 . . 1 . Energy Cannon . | . . . . . . . Ballistic Gun . | . . . . . . . Ballistic Cannon . | . . . . . . . Launcher . | . . . . . . . Special Weapon . | . . . . . . . Impact Weapon 5 | . . . . . . 5 Slashing Weapon . | . . . . . . . Piercing Weapon . | . . . . . . . Special Melee Weapon . | . . . . . . . Unidentified Prototypes 2 | . . . . . . 2 Corrupted Parts 1 | . . . . . . 1 System Corruption 3 | . . . . . . 3 Parts Lost 25 | . 3 1 . . 12 9 Power 5 | . 1 1 . . 2 1 Propulsion 11 | . . . . . 6 5 Utility 4 | . . . . . 1 3 Weapon 5 | . 2 . . . 3 . Highest Loss Streak 8 | . 2 1 . . 6 8 To Critical Strikes . | . . . . . . . Average Slot Usage (%) 75 | . 74 93 88 72 54 69 Engine 4 | . 9 6 11 9 4 . Core 4 | . 3 4 . . . 7 Treads 1 | . . . . . . 4 Leg 13 | . 28 29 . . . . Hover 3 | . . . 33 27 8 . Flight 11 | . . 11 . . 13 18 Device 9 | . 3 11 11 9 2 15 Storage 7 | . 12 11 11 9 7 . Processor 4 | . . . . . 9 9 Energy Gun 10 | . 16 17 22 18 10 . Impact Weapon 4 | . . . . . . 13 Naked Turns . | . . . . . . . Heaviest Build 20 | 4 18 20 18 18 18 16 Greatest Support 40 | 20 20 40 21 21 21 20 Greatest Overweight (x) 5 | . . 2 . . 1 5 Average Overweight (x) . | . . . . . . . Largest Inventory Capacity 10 | 5 10 10 10 10 10 5 Average Capacity 7 | 5 9 10 10 10 9 5 Most Carried 10 | 2 10 10 10 10 9 5 Average Carried 6 | 1 5 9 10 9 6 4 Final Capacity 10 | 5 10 10 10 10 5 5 Final Carried 10 | 2 10 10 10 9 4 2 Class Distribution -------------------- 47% | Mutant 19% | Scavenger-Mutant 18% | Sprinter 14% | Gladiator Dominant Class ---------------- Mutant | -10/Materials Scavenger-Mutant | -9/Materials Mutant | -9/Mines Mutant | -8/Materials Mutant | -8/Garrison Gladiator | -8/Materials Resources | -11 -10 -9 -9 -8 -8 -8 ----------- Run | Yrd Mat Mat Min Mat Gar Mat Matter Collected 523 | 192 35 152 21 . 81 42 Remotely . | . . . . . . . Salvage Created 387 | . 129 116 . . 81 61 Parts 20 | . 6 6 . . 2 6 Haulers Intercepted . | . . . . . . . Recyclers Shooed . | . . . . . . . Parts Field Recycled . | . . . . . . . Retrieved Matter . | . . . . . . . Parts Self-Destructed . | . . . . . . . Prevented . | . . . . . . . Kills | -11 -10 -9 -9 -8 -8 -8 ------- Run | Yrd Mat Mat Min Mat Gar Mat Combat Hostiles Destroyed 13 | . 3 3 . . 2 5 Melee 3 | . . . . . . 3 Guns 8 | . 3 3 . . 2 . Classes Destroyed 3 | . 1 1 . . . 1 Swarmer 5 | . . . . . . 5 Grunt 7 | . 3 2 . . 2 . Brawler 1 | . . 1 . . . . Best Kill Streak 3 | . 2 3 . . 2 2 Combat Bots Only 3 | . 2 3 . . 2 2 Max Kills in Single Turn 1 | . 1 1 . . 1 1 Gunslinging . | . . . . . . . Exploded . | . . . . . . . Melee 1 | . . . . . . 1 Uniques/NPCs Destroyed . | . . . . . . . Combat | -11 -10 -9 -9 -8 -8 -8 -------- Run | Yrd Mat Mat Min Mat Gar Mat Hostile Shots Fired 214 | . 17 41 . 4 91 61 Missed 66 | . 3 16 . 2 30 15 Damage Taken 2127 | . 330 244 . 32 866 655 Core 630 | . 46 16 . 15 351 202 Absorbed by Shields 17 | . . . . . 17 . Core Remaining (%) 92 | 100 81 . 96 . . . Volleys Fired 35 | . 14 8 . . 13 . Largest 2 | . 2 2 . . 2 . Hottest 105 | . 80 105 . . 105 . Shots Fired 54 | . 18 16 . . 20 . Gun 54 | . 18 16 . . 20 . Cannon . | . . . . . . . Launcher . | . . . . . . . Special . | . . . . . . . Kinetic . | . . . . . . . Thermal 54 | . 18 16 . . 20 . Explosive . | . . . . . . . Electromagnetic . | . . . . . . . Robot Hit Streak 17 | . 13 17 . . 10 . Robot Miss Streak 3 | . 1 3 . . 2 . Penetration Max . | . . . . . . . Secondary Targets 1 | . . . . . 1 . Max Gunslinging Chain 1 | . . . . . 1 . Shots Hit Robots 55 | . 16 15 . . 16 8 Core Hits 37 | . 7 11 . . 17 2 Critical Kills . | . . . . . . . Critical Parts Destroyed 1 | . . . . . . 1 Critical Strikes 1 | . . . . . . 1 Smash 1 | . . . . . . 1 Melee Attacks 34 | . . . . . . 34 Impact 34 | . . . . . . 34 Slashing . | . . . . . . . Piercing . | . . . . . . . Sneak Attacks . | . . . . . . . Combat Hostiles . | . . . . . . . Follow-up Attacks 1 | . . . . . . 1 Damage Inflicted 950 | . 178 183 . . 223 366 Guns 576 | . 178 183 . . 215 . Cannons . | . . . . . . . Explosions . | . . . . . . . Melee 366 | . . . . . . 366 Ramming 8 | . . . . . 8 . Kinetic . | . . . . . . . Thermal 576 | . 178 183 . . 215 . Explosive . | . . . . . . . Electromagnetic . | . . . . . . . Impact 366 | . . . . . . 366 Slashing . | . . . . . . . Piercing . | . . . . . . . Highest Corruption 3 | . . . . . . 3 Average Corruption 3 | . . . . . . 3 Corruption Purged . | . . . . . . . Corruption Blocked . | . . . . . . . Effects 3 | . . . . . . 3 Message Errors 1 | . . . . . . 1 Matter Fused 1 | . . . . . . 1 Energy Discharges 1 | . . . . . . 1 Overload Shots . | . . . . . . . Overflow Damage 113 | . . . . . . 113 Projectiles . | . . . . . . . Explosions . | . . . . . . . Melee 113 | . . . . . . 113 Knockbacks . | . . . . . . . Impact . | . . . . . . . Kinetic . | . . . . . . . Secondary . | . . . . . . . Self-Inflicted Damage 3 | . . . . . 3 . Shots . | . . . . . . . Rammed 2 | . . . . . 2 . Targets Rammed 4 | . 2 . . . 2 . Kicked 2 | . 2 . . . . . Crushed . | . . . . . . . Highest Temperature 360 | . 40 360 . . 348 13 Average Temperature 89 | . 24 199 . . 138 5 Received Heat Transfer 717 | . 129 42 . 9 519 18 Effects 4 | . . 1 . . 3 . Shutdowns 2 | . . 1 . . 1 . Interference 2 | . . . . . 2 . Siege Activations . | . . . . . . . Robots Corrupted . | . . . . . . . Combat Hostiles . | . . . . . . . Parts Fried 2 | . . . . . . 2 Impact Corruptions 6 | . . . . . . 6 Robots Melted . | . . . . . . . Combat Hostiles . | . . . . . . . Parts Melted . | . . . . . . . Heat Transferred 1109 | . 400 315 . . 394 . Parts Sabotaged . | . . . . . . . Parts Stolen . | . . . . . . . Parts Stripped . | . . . . . . . Power Chain Reactions . | . . . . . . . Alert | -11 -10 -9 -9 -8 -8 -8 ------- Run | Yrd Mat Mat Min Mat Gar Mat Peak Influence 230 | . 135 150 58 52 118 230 Initial 58 | . . 48 58 22 33 50 Average 87 | . 42 105 58 29 67 125 Maximum Alert Level 1 | . . . . . . 1 Low Security (%) 95 | 100 100 100 100 100 100 85 Level 1 4 | . . . . . . 14 Level 2 . | . . . . . . . Level 3 . | . . . . . . . Level 4 . | . . . . . . . Level 5 . | . . . . . . . High Security . | . . . . . . . Max Security . | . . . . . . . Squads Dispatched 6 | . 1 . . . . 5 Investigation 1 | . . . . . . 1 Extermination . | . . . . . . . Reinforcement 5 | . 1 . . . . 4 Assault . | . . . . . . . Garrison . | . . . . . . . Intercept . | . . . . . . . Searches Triggered . | . . . . . . . Construction Impeded . | . . . . . . . Haulers Reinforced . | . . . . . . . Active Scanning Responses . | . . . . . . . Cargo Convoy Interrupts . | . . . . . . . Stealth | -11 -10 -9 -9 -8 -8 -8 --------- Run | Yrd Mat Mat Min Mat Gar Mat Distress Signals 2 | . 1 . . . . 1 Communications Jammed . | . . . . . . . Distress Signals . | . . . . . . . Times Spotted 73 | . 9 7 . 6 20 31 Peak Tracking Total 14 | . 5 3 . 9 14 13 Tactical Retreats 9 | . 1 1 . . 4 3 Traps | -11 -10 -9 -9 -8 -8 -8 ------- Run | Yrd Mat Mat Min Mat Gar Mat Traps Triggered 3 | . . 1 . . 2 . Indirectly . | . . . . . . . Trap Hack Attempts . | . . . . . . . Triggered . | . . . . . . . Disarmed . | . . . . . . . Reprogrammed 6 | . . 6 . . . . Reused . | . . . . . . . Traps Extracted . | . . . . . . . Installed . | . . . . . . . Triggered . | . . . . . . . Machines | -11 -10 -9 -9 -8 -8 -8 ---------- Run | Yrd Mat Mat Min Mat Gar Mat Machines Disabled . | . . . . . . . Max in Single Turn . | . . . . . . . Machines Repaired . | . . . . . . . Machines Dismantled . | . . . . . . . Machines Sabotaged . | . . . . . . . Overloaded Fab Kills . | . . . . . . . Hacking | -11 -10 -9 -9 -8 -8 -8 --------- Run | Yrd Mat Mat Min Mat Gar Mat Machines Accessed 17 | . 4 2 . 1 . 10 Terminals 13 | . 4 2 . . . 7 Fabricators . | . . . . . . . Repair Stations . | . . . . . . . Recycling Units 2 | . . . . . . 2 Scanalyzers 1 | . . . . . . 1 Garrison Access 1 | . . . . 1 . . Total Hacks 53 | . 12 9 . 1 . 31 Successful 26 | . 4 4 . 1 . 17 Failed 27 | . 8 5 . . . 14 Catastrophic 10 | . 3 . . . . 7 Database Lockouts . | . . . . . . . Manual 40 | . 12 8 . . . 20 Terminals 41 | . 12 9 . . . 20 Fabricators . | . . . . . . . Repair Stations . | . . . . . . . Recycling Units 5 | . . . . . . 5 Scanalyzers 6 | . . . . . . 6 Garrison Access 1 | . . . . 1 . . Terminal Hacks 6 | . 1 2 . . . 3 Part Schematic 1 | . . . . . . 1 Branch Access Points 3 | . 1 1 . . . 1 Reprogram Traps 1 | . . 1 . . . . Recall Investigation 1 | . . . . . . 1 Fabricator Hacks . | . . . . . . . Repair Station Hacks . | . . . . . . . Recycling Unit Hacks 2 | . . . . . . 2 Retrieve Components 2 | . . . . . . 2 Scanalyzer 6 | . . . . . . 6 Insert Component 3 | . . . . . . 3 Analyze 3 | . . . . . . 3 Garrison Access Hacks 1 | . . . . 1 . . Unlock Access 1 | . . . . 1 . . Unauthorized Hacks 11 | . 3 2 . . . 6 Terminals 11 | . 3 2 . . . 6 Botnet 11 | . 3 2 . . . 6 Fabricators . | . . . . . . . Repair Stations . | . . . . . . . Recycling Units . | . . . . . . . Scanalyzers . | . . . . . . . Garrison Access . | . . . . . . . Data Cores Recovered . | . . . . . . . Used . | . . . . . . . Hacking Detections 15 | . 4 1 . 1 . 9 Full Trace Events 3 | . 2 . . . . 1 Feedback Events . | . . . . . . . Feedback Blocked . | . . . . . . . Robot Schematics Acquired . | . . . . . . . Robots Built . | . . . . . . . Authchips . | . . . . . . . Time . | . . . . . . . Total Robot Build Rating . | . . . . . . . Part Schematics Acquired 4 | . . . . . . 4 Parts Built . | . . . . . . . Authchips . | . . . . . . . Time . | . . . . . . . Total Part Build Rating . | . . . . . . . Parts Repaired . | . . . . . . . Time . | . . . . . . . Parts Recycled . | . . . . . . . Recycled Matter . | . . . . . . . Retrieved Matter . | . . . . . . . Retrieved Components 5 | . . . . . . 5 Parts Scanalyzed 3 | . . . . . . 3 Part Schematics Acquired 3 | . . . . . . 3 Parts Damaged . | . . . . . . . Bothacking | -11 -10 -9 -9 -8 -8 -8 ------------ Run | Yrd Mat Mat Min Mat Gar Mat Used RIF Installer . | . . . . . . . Robots Hacked . | . . . . . . . Non-combat . | . . . . . . . Combat . | . . . . . . . Robot Hacks Applied . | . . . . . . . Relay Couplers Released . | . . . . . . . Fabnet Peak Effective % . | . . . . . . . Robots Rewired . | . . . . . . . Allies Hacked . | . . . . . . . Hacks Repelled . | . . . . . . . Allies | -11 -10 -9 -9 -8 -8 -8 -------- Run | Yrd Mat Mat Min Mat Gar Mat Total Allies . | . . . . . . . Largest Group . | . . . . . . . Highest-Rated Group . | . . . . . . . Highest-Rated Ally . | . . . . . . . Total Orders . | . . . . . . . Ally Attacks . | . . . . . . . Total Damage . | . . . . . . . Kills . | . . . . . . . Allies Corrupted . | . . . . . . . Allies Melted . | . . . . . . . Intel | -11 -10 -9 -9 -8 -8 -8 ------- Run | Yrd Mat Mat Min Mat Gar Mat Robot Analysis Total . | . . . . . . . Derelict Logs Recovered . | . . . . . . . Drone Launches . | . . . . . . . Drone Recoveries . | . . . . . . . Exploration | -11 -10 -9 -9 -8 -8 -8 ------------- Run | Yrd Mat Mat Min Mat Gar Mat Turns Passed 1497 | 49 318 381 35 45 191 478 Spaces Moved 1532 | 38 209 273 68 84 264 596 Core 153 | 5 . . . . 29 119 Treads 94 | . . . . . . 94 Legs 425 | 33 209 183 . . . . Wheels . | . . . . . . . Hover 286 | . . 20 68 84 41 73 Flight 574 | . . 70 . . 194 310 Fastest Speed 26 | 50 120 26 52 52 26 26 Average Speed 71 | 110 120 97 52 52 42 58 Slowest Speed 300 | 120 120 200 52 52 112 300 Overloaded Moves . | . . . . . . . Propulsion Burnouts . | . . . . . . . Robots Hopped 10 | . . . . . 3 7 Cave-ins Triggered . | . . . . . . . Exploration Rate (%) 27 | 3 38 25 25 8 41 55 Regions Visited 6 Branch Regions 1 Pre-discovered Areas . | . . . . . . . Known Exits Taken 2 | . . 1 . 1 . . Unknown Exits Taken 3 | 1 1 . 1 . . . Scrap Searched 1 | . . . 1 . . . Spaces Dug 8 | . . . . . . 8 Terrain Destroyed 8 | . . . . . . 8 Melee 8 | . . . . . . 8 Projectile . | . . . . . . . AOE . | . . . . . . . Terrain Rammed . | . . . . . . . Walls Destroyed . | . . . . . . . Machines Disabled . | . . . . . . . Actions | -11 -10 -9 -9 -8 -8 -8 --------- Run | Yrd Mat Mat Min Mat Gar Mat Total 1816 | 43 256 370 67 84 319 677 Wait 88 | . 15 41 . . 10 22 Move 1507 | 37 208 272 67 83 258 582 Hop 9 | . . . . . 2 7 Pick Up 27 | 2 9 9 . . . 7 Fast Attach 37 | 4 4 12 . . 1 16 Attach 15 | . . 5 . 1 5 4 Detach . | . . . . . . . Swap 8 | . 2 6 . . . . Drop 31 | . 2 17 . . 2 10 Fire 35 | . 14 8 . . 13 . Melee 29 | . . . . . . 29 Ram 2 | . . . . . 2 . Kick 2 | . 2 . . . . . Crush . | . . . . . . . Escape Stasis 26 | . . . . . 26 . Rewire . | . . . . . . . Trap . | . . . . . . . Miscellaneous . | . . . . . . . Route ------- -11/Scrapyard -10/Materials (discovered 3 exits: *Mat / Min / [*Sub]) -9/Materials (discovered 2 exits: *Min x2) -9/Mines -8/Materials (discovered 2 exits: *Sto / Gar) -8/Garrison (discovered 2 exits: *Mat x2) -8/Materials (discovered 1 exit: *Sto) History --------- Turn | Location | Event 8 | -11/Scrapyard | Discovered new exit (range 15) 50 | -11/Scrapyard | Entered Materials 199 | -10/Materials | Identified exit to Mines 310 | -10/Materials | Discovered new exit (range 11) 318 | -10/Materials | Build established: Mutant 354 | -10/Materials | Discovered new exit (range 10) 368 | -10/Materials | Entered another Materials area 368 | -9/Materials | Evolved 2 slots: Propulsion x2 718 | -9/Materials | Identified exit to Mines 749 | -9/Materials | Entered Mines 778 | -9/Mines | Discovered new exit (range 13) 784 | -9/Mines | Entered Materials 784 | -8/Materials | Evolved 2 slots: Propulsion x1, Utility x1 784 | -8/Materials | Discovered new exit (range 8) 789 | -8/Materials | Identified exit to Garrison 829 | -8/Materials | Entered Garrison 862 | -8/Garrison | Triggered checkpoint 903 | -8/Garrison | Discovered new exit (range 11) 910 | -8/Garrison | Triggered checkpoint 912 | -8/Garrison | Triggered checkpoint 934 | -8/Garrison | Triggered checkpoint 946 | -8/Garrison | Lost 6 parts (1p3n1u1w) 958 | -8/Garrison | Triggered checkpoint 1014 | -8/Garrison | Core integrity fell below 50% 1015 | -8/Garrison | Discovered new exit (range 11) 1020 | -8/Garrison | Entered Materials 1027 | -8/Materials | Lost 6 parts (1p3n2w) 1054 | -8/Materials | Identified exit to Storage 1489 | -8/Materials | Core integrity fell below 20% 1498 | -8/Materials | Destroyed by H-61 Shepherd with Heavy Assault Cannon Last Messages --------------- 01488_ Powered Hammer severed. 01490_ Slug penetrates Wall. 01490_ Surge Thruster destroyed. 01490_ Flight Unit destroyed. 01492_ C-17 Slicer destroyed. 01492_ Powered Hammer severed. 01494_ Flight Unit destroyed. 01494_ Knocked back. 01494_ Powered Hammer severed. 01495_ Acquired 8 matter. 01496_ Slug penetrates Wall. 01496_ Microactuators destroyed. 01496_ Knocked back. 01496_ C-17 Slicer system corrupted by crushing effect. 01496_ Nuclear Core destroyed. 01497_ Acquired 10 matter. 01497_ C-17 Slicer system terminally corrupted. 01497_ Acquired Powered Hammer. 01498_ Microactuators destroyed. Map ----- +----------------------------------------------------+ | | | | | | | | | | | | | | | | | | | | | | | | | | | | | | | ########??????????????????????? | | !#????????????????######? | | """ #????????????????# !!!#? | | """ #????????????????# !!!#? | | """ #???????????????## !!!#? | | ? ????#######????? + #? | | ###+####### #????? ## ]#? | | ###### ##* #? | | ##[ #? | | ###### ##c //#? | | ######### #???## ##@cc%#? | | #???????########### ;=/###? | | #???########### #" > H*/#??? | | ###???# "# ; ## #??? | | #?????# """ !# ####### ### #??? | | #?????# """ ###?###?#u#?# #??? | | #?????# """ #???????# #?# #??? | | #?????# #???????# #?# #??? | | #?????# ! #???????# #?# #??? | | ??########+###??##???# ###+#??? | | ??# #?? #?? #????? | | ??# ### ### #????? | | ??+ T #????? | | ??# # #????? | | ??# T #? ????????? | | ??###### #? ????????? | | ???##### ##?????????? | | ??+ ! #??????????? | | ########## #??????????? | | #!! #?# #??????????? | | #!! [ #?# """ #??????????? | | #!! #?# """ #??????????? | | # / #?# """ #??????????? | | + = #?# / ?????????? | | " #?# # " ???????? | +----------------------------------------------------+ Best States ------------- Heat Dissipation 45 Energy Generation 14 Energy Capacity 240 Matter Stores 272 Matter Capacity 300 Sight Range 18 Robot Scan Range 15 Terrain Scan Density 10 Additional Mass Support 6 Melee Speed Boost 20 Evasion (%) 64 Recoil Reduction 1 Item Schematics ----------------- Reaction Control System | -8/Materials | Scanalyzed Powered Hammer | -8/Materials | Scanalyzed Microactuators | -8/Materials | Scanalyzed Hacking Suite | -8/Materials | Hacked Robot Schematics ------------------ None Fabricated ------------ Nothing Alien Tech Used ----------------- None Achievements -------------- None Challenges ------------ None Game ------ Seed BackupPlatingClaymores Manual? 0 Play Time 00:30:49 Cumulative 18.8 hours Start 2024.04.07 @ 00:39:40 End 2024.04.07 @ 01:30:01 Sessions 1 Manual Loads 0 Difficulty Rogue Special Mode None Game No. 26 Rogue 26 Adventurer 0 Explorer 0 Win Type - Total 0 Types 0/0/0/0/0/0/0/0/0 Lore% 12 Gallery% 25 Achievement% 22 Wizard Run 0 Options --------- Layout 1 ASCII 0 Keyboard 0 Movement Numpad Keybinds 0 Fullscreen 1 Font 24/Crisp Map View 50x35 Zoom Use 0% Tactical HUD 1 Map Filters NONE Filters NONE Steam 1 RUN: 35dbaa67-d058-4d69-9dbd-89d0c1c4ed41